Workbook

Sheet Config
A1: MSU Extension Service Lamb Records
A2: Configuration Sheet
A5: Farm Name: | B5: MS Sheep Producers
A6: Owner: | B6: Lilly Lamb
A7: Lamb Year: | B7: 2015

Sheet Lamb Data
A1: =Config!A1 -> MSU Extension Service Lamb Records
A2: Lamb Data Sheet | M2: Age Group Data
M3: 60 Day | O3: 90 Day | Q3: 120 Day
A4: Farm Name: | C4: =IF(Farm_Name="","",Farm_Name) -> MS Sheep Producers | M4: N | N4: Ave Adj WW | O4: N | P4: Ave Adj WW | Q4: N | R4: Ave Adj WW
A5: Owner: | C5: =IF(Farm_Owner="","",Farm_Owner) -> Lilly Lamb | M5: =IF(Lamb_Count=0,"",DCOUNT(Lamb_Data_Table_2,12,Age_Group_60_Criteria)) -> 20 | N5: =IF(Lamb_Count=0,"",DAVERAGE(Lamb_Data_Table_2,17,Age_Group_60_Criteria)) -> 63.86334444 | O5: =IF(Lamb_Count=0,"",DCOUNT(Lamb_Data_Table_2,12,Age_Group_90_Criteria)) -> 19 | P5: =IF(Lamb_Count=0,"",DAVERAGE(Lamb_Data_Table_2,17,Age_Group_90_Criteria)) -> 63.26104324 | Q5: =IF(Lamb_Count=0,"",DCOUNT(Lamb_Data_Table_2,12,Age_Group_120_Criteria)) -> 11 | R5: =IF(Lamb_Count=0,"",DAVERAGE(Lamb_Data_Table_2,17,Age_Group_120_Criteria)) -> 59.50021239
A6: Lamb Year: | C6: =IF(Lamb_Year="","",Lamb_Year) -> 2015 | K6: Ave. | L6: Ave. | N6: Ave. | O6: Ave. | P6: Ave. | Q6: Ave. | R6: Ave.
K7: =IF(Lamb_Count=0,"",AVERAGE(K10:K209)) -> 53.86 | L7: =IF(Lamb_Count=0,"",AVERAGE(L10:L209)) -> 84.72 | N7: =IF(Lamb_Count=0,"",AVERAGE(N10:N209)) -> 0.690185734 | O7: =IF(Lamb_Count=0,"",AVERAGE(O10:O209)) -> 0.5617296481 | P7: =IF(Lamb_Count=0,"",AVERAGE(P10:P209)) -> 53.95758814 | Q7: =IF(Lamb_Count=0,"",AVERAGE(Q10:Q209)) -> 62.67458094 | R7: =IF(Lamb_Count=0,"",AVERAGE(R10:R209)) -> 98.69211327
A9: # | B9: Lamb ID | C9: Ewe ID | D9: Ewe Age | E9: Ram ID | F9: Lamb Birth Date | G9: Lamb Sex | H9: Birth/ Rrng Type | I9: Birth Wt | J9: Weaning Date | K9: Wng Wt (WW) | L9: Wng Age (Days) | M9: Wng Age Group | N9: WDA | O9: ADG | P9: Age Corr WW | Q9: Adj WW | R9: Adj WW Ratio
A10: 1 | B10: 101 | C10: 101 | D10: =IF(C10="","",VLOOKUP(F10-VLOOKUP(C10,Ewe_Data_Table,3,FALSE),Age_Of_Dam_Table,2)) -> 2 | E10: 201 | F10: 2009-02-02 | G10: 1 | H10: 4 | I10: 8 | J10: 2009-04-13 | K10: 68 | L10: =IF(OR(F10="",J10=""),"",J10-F10) -> 70 | M10: =IF(L10="","",VLOOKUP(L10,Age_Group_Table,2)) -> 60 | N10: =IF(K10="","",K10/L10) -> 0.9714285714 | O10: =IF(OR(I10="",K10="",L10=""),"",(K10-I10)/L10) -> 0.8571428571 | P10: =IF(K10="","",IF(I10="",N10*M10,O10*M10+I10)) -> 59.42857143 | Q10: =IF(P10="","",CHOOSE(G10,VLOOKUP(D10,Ewe_Lamb_Adj_Factors_Table,H10+1)*P10,VLOOKUP(D10,Ram_Lamb_Adj_Factors_Table,H10+1)*P10,VLOOKUP(D10,Wether_Lamb_Adj_Factors_Table,H10+1)*P10)) -> 75.47428571 | R10: =IF(K10="","",IF(M10=60,Q10/Age_Group_60_Ave_Adj_WW*100,IF(M10=90,Q10/Age_Group_90_Ave_Adj_WW*100,Q10/Age_Group_120_Ave_Adj_WW*100))) -> 118.1809164
A11: 2 | B11: 102 | C11: 102 | D11: 3 | E11: 202 | F11: 2009-02-02 | G11: 2 | H11: 7 | I11: 8 | J11: 2009-06-01 | K11: 30 | L11: 119 | M11: 120 | N11: 0.2521008403 | O11: 0.1848739496 | P11: 30.18487395 | Q11: 37.73109244 | R11: =IF(K11="","",IF(M11=60,Q11/Age_Group_60_Ave_Adj_WW*100,Q11/Age_Group_90_Ave_Adj_WW*100)) -> 59.64348753
A12: 3 | B12: 103 | C12: 103 | D12: 3 | E12: 203 | F12: 2009-03-03 | G12: 1 | H12: 1 | I12: 12 | J12: 2009-05-17 | K12: 85 | L12: 75 | M12: 60 | N12: 1.133333333 | O12: 0.9733333333 | P12: 70.4 | Q12: 70.4 | R12: 110.2353793
A13: 4 | B13: 104 | C13: 104 | D13: 3 | E13: 204 | F13: 2009-04-03 | G13: 1 | H13: 1 | I13: 8 | J13: 2009-06-01 | K13: 50 | L13: 59 | M13: 60 | N13: 0.8474576271 | O13: 0.7118644068 | P13: 50.71186441 | Q13: 50.71186441 | R13: 79.40684104
A14: 5 | B14: 105 | C14: 105 | D14: 3 | E14: 205 | F14: 2009-02-05 | G14: 2 | H14: 3 | I14: 9 | J14: 2009-06-01 | K14: 50 | L14: 116 | M14: 120 | N14: 0.4310344828 | O14: 0.3534482759 | P14: 51.4137931 | Q14: 51.92793103 | R14: 82.08516391
A15: 6 | B15: 106 | C15: 106 | D15: 7 | E15: 201 | F15: 2009-03-06 | G15: 3 | H15: 5 | I15: 10 | J15: 2009-06-01 | K15: 50 | L15: 87 | M15: 90 | N15: 0.5747126437 | O15: 0.4597701149 | P15: 51.37931034 | Q15: 61.65517241 | R15: 97.461517
A16: 7 | B16: 107 | C16: 107 | D16: 7 | E16: 202 | F16: 2009-04-07 | G16: 1 | H16: 3 | I16: 10 | J16: 2009-06-01 | K16: 50 | L16: 55 | M16: 60 | N16: 0.9090909091 | O16: 0.7272727273 | P16: 53.63636364 | Q16: 61.68181818 | R16: 96.58407138
A17: 8 | B17: 108 | C17: 108 | D17: 7 | E17: 203 | F17: 2009-02-08 | G17: 2 | H17: 5 | I17: 11 | J17: 2009-06-01 | K17: 50 | L17: 113 | M17: 120 | N17: 0.4424778761 | O17: 0.3451327434 | P17: 52.4159292 | Q17: 59.23 | R17: 93.62792165
A18: 9 | B18: 109 | C18: 109 | D18: 7 | E18: 204 | F18: 2009-03-09 | G18: 3 | H18: 2 | I18: 9 | J18: 2009-06-01 | K18: 65 | L18: 84 | M18: 90 | N18: 0.7738095238 | O18: 0.6666666667 | P18: 69 | Q18: 79.35 | R18: 125.4326453
A19: 10 | B19: 110 | C19: 110 | D19: 7 | E19: 205 | F19: 2009-04-10 | G19: 1 | H19: 5 | I19: 12 | J19: 2009-06-01 | K19: 50 | L19: 52 | M19: 60 | N19: 0.9615384615 | O19: 0.7307692308 | P19: 55.84615385 | Q19: 69.24923077 | R19: 108.4334549
A20: 11 | B20: 111 | C20: 111 | D20: 7 | E20: 201 | F20: 2009-02-11 | G20: 2 | H20: 2 | I20: 10 | J20: 2009-06-01 | K20: 50 | L20: 110 | M20: 120 | N20: 0.4545454545 | O20: 0.3636363636 | P20: 53.63636364 | Q20: 57.92727273 | R20: 91.56863333
A21: 12 | B21: 112 | C21: 112 | D21: 7 | E21: 202 | F21: 2009-03-13 | G21: 3 | H21: 4 | I21: 11 | J21: 2009-06-01 | K21: 50 | L21: 80 | M21: 90 | N21: 0.625 | O21: 0.4875 | P21: 54.875 | Q21: 66.39875 | R21: 104.9599352
A22: 13 | B22: 113 | C22: 113 | D22: 7 | E22: 203 | F22: 2009-04-14 | G22: 1 | H22: 2 | I22: 11 | J22: 2009-06-01 | K22: 50 | L22: 48 | M22: 60 | N22: 1.041666667 | O22: 0.8125 | P22: 59.75 | Q22: 71.1025 | R22: 111.3353844
A23: 14 | B23: 114 | C23: 114 | D23: 2 | E23: 204 | F23: 2009-02-15 | G23: 2 | H23: 3 | I23: 8 | J23: 2009-06-01 | K23: 55 | L23: 106 | M23: 120 | N23: 0.5188679245 | O23: 0.4433962264 | P23: 61.20754717 | Q23: 65.49207547 | R23: 103.5267079
A24: 15 | B24: 115 | C24: 115 | D24: 3 | E24: 205 | F24: 2009-03-16 | G24: 3 | H24: 5 | I24: 9 | J24: 2009-06-01 | K24: 55 | L24: 77 | M24: 90 | N24: 0.7142857143 | O24: 0.5974025974 | P24: 62.76623377 | Q24: 72.18116883 | R24: 114.1005035
A25: 16 | B25: 116 | C25: 116 | D25: 3 | E25: 201 | F25: 2009-02-17 | G25: 1 | H25: 1 | I25: 12 | J25: 2009-06-01 | K25: 55 | L25: 104 | M25: 90 | N25: 0.5288461538 | O25: 0.4134615385 | P25: 49.21153846 | Q25: 49.21153846 | R25: 77.7912218
A26: 17 | B26: 117 | C26: 117 | D26: 3 | E26: 202 | F26: 2009-02-18 | G26: 2 | H26: 4 | I26: 12 | J26: 2009-06-01 | K26: 55 | L26: 103 | M26: 90 | N26: 0.5339805825 | O26: 0.4174757282 | P26: 49.57281553 | Q26: 54.03436893 | R26: 85.41491914
A27: 18 | B27: 118 | C27: 118 | D27: 3 | E27: 203 | F27: 2009-03-18 | G27: 3 | H27: 6 | I27: 8 | J27: 2009-06-01 | K27: 55 | L27: 75 | M27: 60 | N27: 0.7333333333 | O27: 0.6266666667 | P27: 45.6 | Q27: 56.544 | R27: 88.5390524
A28: 19 | B28: 119 | C28: 119 | D28: 7 | E28: 204 | F28: 2009-04-17 | G28: 1 | H28: 7 | I28: 9 | J28: 2009-06-01 | K28: 55 | L28: 45 | M28: 60 | N28: 1.222222222 | O28: 1.022222222 | P28: 70.33333333 | Q28: 99.87333333 | R28: 156.3860055
A29: 20 | B29: 120 | C29: 120 | D29: 7 | E29: 205 | F29: 2009-02-20 | G29: 2 | H29: 6 | I29: 9 | J29: 2009-06-01 | K29: 60 | L29: 101 | M29: 90 | N29: 0.5940594059 | O29: 0.504950495 | P29: 54.44554455 | Q29: 65.87910891 | R29: 104.1385117
A30: 21 | B30: 121 | C30: 121 | D30: 7 | E30: 201 | F30: 2009-03-21 | G30: 3 | H30: 2 | I30: 11 | J30: 2009-06-01 | K30: 60 | L30: 72 | M30: 60 | N30: 0.8333333333 | O30: 0.6805555556 | P30: 51.83333333 | Q30: 59.60833333 | R30: 93.33731869
A31: 22 | B31: 122 | C31: 122 | D31: 7 | E31: 202 | F31: 2009-02-22 | G31: 1 | H31: 6 | I31: 10 | J31: 2009-06-01 | K31: 60 | L31: 99 | M31: 90 | N31: 0.6060606061 | O31: 0.5050505051 | P31: 55.45454545 | Q31: 73.75454545 | R31: 116.5876212
A32: 23 | B32: 123 | C32: 123 | D32: 7 | E32: 203 | F32: 2009-02-23 | G32: 2 | H32: 1 | I32: 11 | J32: 2009-06-01 | K32: 40 | L32: 98 | M32: 90 | N32: 0.4081632653 | O32: 0.2959183673 | P32: 37.63265306 | Q32: 35.75102041 | R32: 56.51348535
A33: 24 | B33: 124 | C33: 124 | D33: 7 | E33: 204 | F33: 2009-03-24 | G33: 3 | H33: 1 | I33: 10 | J33: 2009-06-01 | K33: 30 | L33: 69 | M33: 60 | N33: 0.4347826087 | O33: 0.2898550725 | P33: 27.39130435 | Q33: 27.66521739 | R33: 43.31939962
A34: 25 | B34: 125 | C34: 125 | D34: 7 | E34: 205 | F34: 2009-03-24 | G34: 1 | H34: 6 | I34: 10 | J34: 2009-06-01 | K34: 60 | L34: 69 | M34: 60 | N34: 0.8695652174 | O34: 0.7246376812 | P34: 53.47826087 | Q34: 71.12608696 | R34: 111.3723178
A35: 26 | B35: 126 | C35: 126 | D35: 7 | E35: 201 | F35: 2009-03-24 | G35: 2 | H35: 7 | I35: 11 | J35: 2009-06-01 | K35: 60 | L35: 69 | M35: 60 | N35: 0.8695652174 | O35: 0.7101449275 | P35: 53.60869565 | Q35: 69.69130435 | R35: 109.1256729
A36: 27 | B36: 127 | C36: 127 | D36: 2 | E36: 202 | F36: 2009-02-02 | G36: 3 | H36: 5 | I36: 9 | J36: 2009-06-01 | K36: 50 | L36: 119 | M36: 120 | N36: 0.4201680672 | O36: 0.3445378151 | P36: 50.34453782 | Q36: 61.42033613 | R36: 97.09029916
A37: 28 | B37: 128 | C37: 128 | D37: 3 | E37: 203 | F37: 2009-02-02 | G37: 1 | H37: 1 | I37: 9 | J37: 2009-06-01 | K37: 50 | L37: 119 | M37: 120 | N37: 0.4201680672 | O37: 0.3445378151 | P37: 50.34453782 | Q37: 50.34453782 | R37: 79.58221242
A38: 29 | B38: 129 | C38: 129 | D38: 3 | E38: 204 | F38: 2009-03-03 | G38: 2 | H38: 1 | I38: 8 | J38: 2009-06-01 | K38: 50 | L38: 90 | M38: 90 | N38: 0.5555555556 | O38: 0.4666666667 | P38: 50 | Q38: 45.5 | R38: 71.92420116
A39: 30 | B39: 130 | C39: 130 | D39: 3 | E39: 205 | F39: 2009-04-03 | G39: 3 | H39: 2 | I39: 9 | J39: 2009-06-01 | K39: 50 | L39: 59 | M39: 60 | N39: 0.8474576271 | O39: 0.6949152542 | P39: 50.69491525 | Q39: 56.27135593 | R39: 88.11213447
A40: 31 | B40: 131 | C40: 131 | D40: 3 | E40: 201 | F40: 2009-02-05 | G40: 1 | H40: 4 | I40: 10 | J40: 2009-06-01 | K40: 50 | L40: 116 | M40: 120 | N40: 0.4310344828 | O40: 0.3448275862 | P40: 51.37931034 | Q40: 61.65517241 | R40: 97.461517
A41: 32 | B41: 132 | C41: 132 | D41: 7 | E41: 202 | F41: 2009-03-06 | G41: 2 | H41: 6 | I41: 11 | J41: 2009-06-01 | K41: 50 | L41: 87 | M41: 90 | N41: 0.5747126437 | O41: 0.4482758621 | P41: 51.34482759 | Q41: 62.12724138 | R41: 98.20774081
A42: 33 | B42: 133 | C42: 133 | D42: =IF(C42="","",VLOOKUP(F42-VLOOKUP(C42,Ewe_Data_Table,3,FALSE),Age_Of_Dam_Table,2)) -> 7 | E42: 203 | F42: 2009-04-07 | G42: 3 | H42: 4 | I42: 11 | J42: 2009-06-01 | K42: 50 | L42: =IF(OR(F42="",J42=""),"",J42-F42) -> 55 | M42: =IF(L42="","",VLOOKUP(L42,Age_Group_Table,2)) -> 60 | N42: =IF(K42="","",K42/L42) -> 0.9090909091 | O42: =IF(OR(I42="",K42="",L42=""),"",(K42-I42)/L42) -> 0.7090909091 | P42: =IF(K42="","",IF(I42="",N42*M42,O42*M42+I42)) -> 53.54545455 | Q42: =IF(P42="","",CHOOSE(G42,VLOOKUP(D42,Ewe_Lamb_Adj_Factors_Table,H42+1)*P42,VLOOKUP(D42,Ram_Lamb_Adj_Factors_Table,H42+1)*P42,VLOOKUP(D42,Wether_Lamb_Adj_Factors_Table,H42+1)*P42)) -> 64.79 | R42: 101.4509975
A43: 34 | B43: 134 | C43: 134 | D43: 7 | E43: 204 | F43: 2009-02-08 | G43: 1 | H43: 6 | I43: 12 | J43: 2009-06-01 | K43: 50 | L43: 113 | M43: 120 | N43: 0.4424778761 | O43: 0.3362831858 | P43: 52.3539823 | Q43: 69.63079646 | R43: =IF(K43="","",IF(M43=60,Q43/Age_Group_60_Ave_Adj_WW*100,Q43/Age_Group_90_Ave_Adj_WW*100)) -> 110.0689981
A44: 35 | B44: 135 | C44: 135 | D44: 7 | E44: 205 | F44: 2009-03-09 | G44: 2 | H44: 3 | I44: 10 | J44: 2009-06-01 | K44: 65 | L44: 84 | M44: 90 | N44: 0.7738095238 | O44: 0.6547619048 | P44: 68.92857143 | Q44: 72.375 | R44: 114.4069024
A45: 36 | B45: 136 | C45: 136 | D45: 7 | E45: 201 | F45: 2009-04-10 | G45: 3 | H45: 6 | I45: 8 | J45: 2009-06-01 | K45: 50 | L45: 52 | M45: 60 | N45: 0.9615384615 | O45: 0.8076923077 | P45: 56.46153846 | Q45: 72.83538462 | R45: 114.0488104
A46: 37 | B46: 137 | C46: 137 | D46: 7 | E46: 202 | F46: 2009-02-11 | G46: 1 | H46: 3 | I46: 11 | J46: 2009-06-01 | K46: 50 | L46: 110 | M46: 120 | N46: 0.4545454545 | O46: 0.3545454545 | P46: 53.54545455 | Q46: 61.57727273 | R46: 97.33837694
A47: 38 | B47: 138 | C47: 138 | D47: 7 | E47: 203 | F47: 2009-03-13 | G47: 2 | H47: 5 | I47: 12 | J47: 2009-06-01 | K47: 50 | L47: 80 | M47: 90 | N47: 0.625 | O47: 0.475 | P47: 54.75 | Q47: 61.8675 | R47: 97.79715419
A48: 39 | B48: 139 | C48: 139 | D48: 7 | E48: 204 | F48: 2009-04-14 | G48: 3 | H48: 3 | I48: 12 | J48: 2009-06-01 | K48: 50 | L48: 48 | M48: 60 | N48: 1.041666667 | O48: 0.7916666667 | P48: 59.5 | Q48: 66.64 | R48: 104.3478079
A49: 40 | B49: 140 | C49: 140 | D49: 2 | E49: 205 | F49: 2009-02-15 | G49: 1 | H49: 4 | I49: 9 | J49: 2009-06-01 | K49: 55 | L49: 106 | M49: 120 | N49: 0.5188679245 | O49: 0.4339622642 | P49: 61.0754717 | Q49: 77.56584906 | R49: 122.6123457
A50: 41 | B50: 141 | C50: 141 | D50: 3 | E50: 201 | F50: 2009-03-16 | G50: 2 | H50: 4 | I50: 8 | J50: 2009-06-01 | K50: 55 | L50: 77 | M50: 90 | N50: 0.7142857143 | O50: 0.6103896104 | P50: 62.93506494 | Q50: 68.59922078 | R50: 108.4383331
A51: 42 | B51: 142 | C51: 142 | D51: 3 | E51: 202 | F51: 2009-02-17 | G51: 3 | H51: 2 | I51: 8 | J51: 2009-06-01 | K51: 55 | L51: 104 | M51: 90 | N51: 0.5288461538 | O51: 0.4519230769 | P51: 48.67307692 | Q51: 54.02711538 | R51: 85.40345308
A52: 43 | B52: 143 | C52: 143 | D52: 3 | E52: 203 | F52: 2009-02-18 | G52: 1 | H52: 5 | I52: 8 | J52: 2009-06-01 | K52: 55 | L52: 103 | M52: 90 | N52: 0.5339805825 | O52: 0.4563106796 | P52: 49.06796117 | Q52: 58.39087379 | R52: 92.30147148
A53: 44 | B53: 144 | C53: 144 | D53: 3 | E53: 204 | F53: 2009-03-18 | G53: 2 | H53: 7 | I53: 9 | J53: 2009-06-01 | K53: 55 | L53: 75 | M53: 60 | N53: 0.7333333333 | O53: 0.6133333333 | P53: 45.8 | Q53: 57.25 | R53: 89.64453788
A54: 45 | B54: 145 | C54: 145 | D54: 7 | E54: 205 | F54: 2009-04-17 | G54: 3 | H54: 1 | I54: 10 | J54: 2009-06-01 | K54: 55 | L54: 45 | M54: 60 | N54: 1.222222222 | O54: 1 | P54: 70 | Q54: 70.7 | R54: 110.7051324
A55: 46 | B55: 146 | C55: 146 | D55: 7 | E55: 201 | F55: 2009-02-20 | G55: 1 | H55: 7 | I55: 10 | J55: 2009-06-01 | K55: 60 | L55: 101 | M55: 90 | N55: 0.5940594059 | O55: 0.495049505 | P55: 54.55445545 | Q55: 77.46732673 | R55: 122.4566064
A56: 47 | B56: 147 | C56: 147 | D56: 7 | E56: 202 | F56: 2009-03-21 | G56: 2 | H56: 3 | I56: 12 | J56: 2009-06-01 | K56: 60 | L56: 72 | M56: 60 | N56: 0.8333333333 | O56: 0.6666666667 | P56: 52 | Q56: 54.6 | R56: 85.49505272
A57: 48 | B57: 148 | C57: 148 | D57: 7 | E57: 203 | F57: 2009-02-22 | G57: 3 | H57: 7 | I57: 11 | J57: 2009-06-01 | K57: 60 | L57: 99 | M57: 90 | N57: 0.6060606061 | O57: 0.4949494949 | P57: 55.54545455 | Q57: 76.65272727 | R57: 121.1689269
A58: 49 | B58: 149 | C58: 149 | D58: 7 | E58: 204 | F58: 2009-02-23 | G58: 1 | H58: 2 | I58: 12 | J58: 2009-06-01 | K58: 60 | L58: 98 | M58: 90 | N58: 0.612244898 | O58: 0.4897959184 | P58: 56.08163265 | Q58: 66.73714286 | R58: 105.4948503
A59: 50 | B59: 150 | C59: 150 | D59: 7 | E59: 205 | F59: 2009-03-24 | G59: 2 | H59: 1 | I59: 12 | J59: 2009-06-01 | K59: 60 | L59: 69 | M59: 60 | N59: 0.8695652174 | O59: 0.6956521739 | P59: 53.73913043 | Q59: 51.05217391 | R59: 79.93971245
A60: 51
A61: 52
A62: 53
A63: 54
A64: 55
A65: 56
A66: 57
A67: 58
A68: 59
A69: 60
A70: 61
A71: 62
A72: 63
A73: 64
A74: 65 | D74: =IF(C74="","",VLOOKUP(F74-VLOOKUP(C74,Ewe_Data_Table,3,FALSE),Age_Of_Dam_Table,2)) ->  | L74: =IF(OR(F74="",J74=""),"",J74-F74) ->  | M74: =IF(L74="","",VLOOKUP(L74,Age_Group_Table,2)) ->  | N74: =IF(K74="","",K74/L74) ->  | O74: =IF(OR(I74="",K74="",L74=""),"",(K74-I74)/L74) ->  | P74: =IF(K74="","",IF(I74="",N74*M74,O74*M74+I74)) ->  | Q74: =IF(P74="","",CHOOSE(G74,VLOOKUP(D74,Ewe_Lamb_Adj_Factors_Table,H74+1)*P74,VLOOKUP(D74,Ram_Lamb_Adj_Factors_Table,H74+1)*P74,VLOOKUP(D74,Wether_Lamb_Adj_Factors_Table,H74+1)*P74)) -> 
A75: 66 | R75: =IF(K75="","",IF(M75=60,Q75/Age_Group_60_Ave_Adj_WW*100,Q75/Age_Group_90_Ave_Adj_WW*100)) -> 
A76: 67
A77: 68
A78: 69
A79: 70
A80: 71
A81: 72
A82: 73
A83: 74
A84: 75
A85: 76
A86: 77
A87: 78
A88: 79
A89: 80
A90: 81
A91: 82
A92: 83
A93: 84
A94: 85
A95: 86
A96: 87
A97: 88
A98: 89
A99: 90
A100: 91
A101: 92
A102: 93
A103: 94
A104: 95
A105: 96
A106: 97 | D106: =IF(C106="","",VLOOKUP(F106-VLOOKUP(C106,Ewe_Data_Table,3,FALSE),Age_Of_Dam_Table,2)) ->  | L106: =IF(OR(F106="",J106=""),"",J106-F106) ->  | M106: =IF(L106="","",VLOOKUP(L106,Age_Group_Table,2)) ->  | N106: =IF(K106="","",K106/L106) ->  | O106: =IF(OR(I106="",K106="",L106=""),"",(K106-I106)/L106) ->  | P106: =IF(K106="","",IF(I106="",N106*M106,O106*M106+I106)) ->  | Q106: =IF(P106="","",CHOOSE(G106,VLOOKUP(D106,Ewe_Lamb_Adj_Factors_Table,H106+1)*P106,VLOOKUP(D106,Ram_Lamb_Adj_Factors_Table,H106+1)*P106,VLOOKUP(D106,Wether_Lamb_Adj_Factors_Table,H106+1)*P106)) -> 
A107: 98 | R107: =IF(K107="","",IF(M107=60,Q107/Age_Group_60_Ave_Adj_WW*100,Q107/Age_Group_90_Ave_Adj_WW*100)) -> 
A108: 99
A109: 100
A110: 101
A111: 102
A112: 103
A113: 104
A114: 105
A115: 106
A116: 107
A117: 108
A118: 109
A119: 110
A120: 111
A121: 112
A122: 113
A123: 114
A124: 115
A125: 116
A126: 117
A127: 118
A128: 119
A129: 120
A130: 121
A131: 122
A132: 123
A133: 124
A134: 125
A135: 126
A136: 127
A137: 128
A138: 129 | D138: =IF(C138="","",VLOOKUP(F138-VLOOKUP(C138,Ewe_Data_Table,3,FALSE),Age_Of_Dam_Table,2)) ->  | L138: =IF(OR(F138="",J138=""),"",J138-F138) ->  | M138: =IF(L138="","",VLOOKUP(L138,Age_Group_Table,2)) ->  | N138: =IF(K138="","",K138/L138) ->  | O138: =IF(OR(I138="",K138="",L138=""),"",(K138-I138)/L138) ->  | P138: =IF(K138="","",IF(I138="",N138*M138,O138*M138+I138)) ->  | Q138: =IF(P138="","",CHOOSE(G138,VLOOKUP(D138,Ewe_Lamb_Adj_Factors_Table,H138+1)*P138,VLOOKUP(D138,Ram_Lamb_Adj_Factors_Table,H138+1)*P138,VLOOKUP(D138,Wether_Lamb_Adj_Factors_Table,H138+1)*P138)) -> 
A139: 130 | R139: =IF(K139="","",IF(M139=60,Q139/Age_Group_60_Ave_Adj_WW*100,Q139/Age_Group_90_Ave_Adj_WW*100)) -> 
A140: 131
A141: 132
A142: 133
A143: 134
A144: 135
A145: 136
A146: 137
A147: 138
A148: 139
A149: 140
A150: 141
A151: 142
A152: 143
A153: 144
A154: 145
A155: 146
A156: 147
A157: 148
A158: 149
A159: 150
A160: 151
A161: 152
A162: 153
A163: 154
A164: 155
A165: 156
A166: 157
A167: 158
A168: 159
A169: 160
A170: 161 | D170: =IF(C170="","",VLOOKUP(F170-VLOOKUP(C170,Ewe_Data_Table,3,FALSE),Age_Of_Dam_Table,2)) ->  | L170: =IF(OR(F170="",J170=""),"",J170-F170) ->  | M170: =IF(L170="","",VLOOKUP(L170,Age_Group_Table,2)) ->  | N170: =IF(K170="","",K170/L170) ->  | O170: =IF(OR(I170="",K170="",L170=""),"",(K170-I170)/L170) ->  | P170: =IF(K170="","",IF(I170="",N170*M170,O170*M170+I170)) ->  | Q170: =IF(P170="","",CHOOSE(G170,VLOOKUP(D170,Ewe_Lamb_Adj_Factors_Table,H170+1)*P170,VLOOKUP(D170,Ram_Lamb_Adj_Factors_Table,H170+1)*P170,VLOOKUP(D170,Wether_Lamb_Adj_Factors_Table,H170+1)*P170)) -> 
A171: 162 | R171: =IF(K171="","",IF(M171=60,Q171/Age_Group_60_Ave_Adj_WW*100,Q171/Age_Group_90_Ave_Adj_WW*100)) -> 
A172: 163
A173: 164
A174: 165
A175: 166
A176: 167
A177: 168
A178: 169
A179: 170
A180: 171
A181: 172
A182: 173
A183: 174
A184: 175
A185: 176
A186: 177
A187: 178
A188: 179
A189: 180
A190: 181
A191: 182
A192: 183
A193: 184
A194: 185
A195: 186
A196: 187
A197: 188
A198: 189
A199: 190
A200: 191
A201: 192
... 8 more rows

Sheet Ewe Data
A1: =Config!A1 -> MSU Extension Service Lamb Records
A2: Ewe Data Sheet
G3: # Ewes
G4: =IF(Ewe_Count=0,"",Ewe_Count) -> 50
A6: # | B6: Ewe ID | C6: Ewe Name | D6: Birth Date | E6: Breed | F6: Dam ID | G6: Sire ID
A7: 1 | B7: 101 | C7: Betty 1 | D7: 2007-01-01 | E7: KT
A8: 2 | B8: 103 | C8: Betty 2 | D8: 2006-01-01 | E8: KT
A9: 3 | B9: 102 | C9: Betty 3 | D9: 2005-01-01 | E9: KT
A10: 4 | B10: 104 | C10: Betty 4 | D10: 2004-01-01 | E10: KT
A11: 5 | B11: 105 | C11: Betty 5 | D11: 2003-01-01 | E11: KT
A12: 6 | B12: 106 | C12: Betty 6 | D12: 2002-01-01 | E12: KT
A13: 7 | B13: 107 | C13: Betty 7 | D13: 2001-01-01 | E13: KT
A14: 8 | B14: 108 | C14: Betty 8 | D14: 2000-01-01 | E14: KT
A15: 9 | B15: 109 | C15: Betty 9 | D15: 1999-01-01 | E15: KT
A16: 10 | B16: 110 | C16: Betty 10 | D16: 1998-01-01 | E16: KT
A17: 11 | B17: 111 | C17: Betty 11 | D17: 1997-01-01 | E17: KT
A18: 12 | B18: 112 | C18: Betty 12 | D18: 1996-01-01 | E18: KT
A19: 13 | B19: 113 | C19: Betty 13 | D19: 1995-01-01 | E19: KT
A20: 14 | B20: 114 | C20: Betty 14 | D20: 2007-01-01 | E20: KT
A21: 15 | B21: 115 | C21: Betty 15 | D21: 2006-01-01 | E21: KT
A22: 16 | B22: 116 | C22: Betty 16 | D22: 2005-01-01 | E22: KT
A23: 17 | B23: 117 | C23: Betty 17 | D23: 2004-01-01 | E23: KT
A24: 18 | B24: 118 | C24: Betty 18 | D24: 2003-01-01 | E24: KT
A25: 19 | B25: 119 | C25: Betty 19 | D25: 2002-01-01 | E25: KT
A26: 20 | B26: 120 | C26: Betty 20 | D26: 2001-01-01 | E26: KT
A27: 21 | B27: 121 | C27: Betty 21 | D27: 2000-01-01 | E27: KT
A28: 22 | B28: 122 | C28: Betty 22 | D28: 1999-01-01 | E28: KT
A29: 23 | B29: 123 | C29: Betty 23 | D29: 1998-01-01 | E29: KT
A30: 24 | B30: 124 | C30: Betty 24 | D30: 1997-01-01 | E30: KT
A31: 25 | B31: 125 | C31: Betty 25 | D31: 1996-01-01 | E31: KT
A32: 26 | B32: 126 | C32: Betty 26 | D32: 1995-01-01 | E32: KT
A33: 27 | B33: 127 | C33: Betty 27 | D33: 2007-01-01 | E33: KT
A34: 28 | B34: 128 | C34: Betty 28 | D34: 2006-01-01 | E34: KT
A35: 29 | B35: 129 | C35: Betty 29 | D35: 2005-01-01 | E35: KT
A36: 30 | B36: 130 | C36: Betty 30 | D36: 2004-01-01 | E36: KT
A37: 31 | B37: 131 | C37: Betty 31 | D37: 2003-01-01 | E37: KT
A38: 32 | B38: 132 | C38: Betty 32 | D38: 2002-01-01 | E38: KT
A39: 33 | B39: 133 | C39: Betty 33 | D39: 2001-01-01 | E39: KT
A40: 34 | B40: 134 | C40: Betty 34 | D40: 2000-01-01 | E40: KT
A41: 35 | B41: 135 | C41: Betty 35 | D41: 1999-01-01 | E41: KT
A42: 36 | B42: 136 | C42: Betty 36 | D42: 1998-01-01 | E42: KT
A43: 37 | B43: 137 | C43: Betty 37 | D43: 1997-01-01 | E43: KT
A44: 38 | B44: 138 | C44: Betty 38 | D44: 1996-01-01 | E44: KT
A45: 39 | B45: 139 | C45: Betty 39 | D45: 1995-01-01 | E45: KT
A46: 40 | B46: 140 | C46: Betty 40 | D46: 2007-01-01 | E46: KT
A47: 41 | B47: 141 | C47: Betty 41 | D47: 2006-01-01 | E47: KT
A48: 42 | B48: 142 | C48: Betty 42 | D48: 2005-01-01 | E48: KT
A49: 43 | B49: 143 | C49: Betty 43 | D49: 2004-01-01 | E49: KT
A50: 44 | B50: 144 | C50: Betty 44 | D50: 2003-01-01 | E50: KT
A51: 45 | B51: 145 | C51: Betty 45 | D51: 2002-01-01 | E51: KT
A52: 46 | B52: 146 | C52: Betty 46 | D52: 2001-01-01 | E52: KT
A53: 47 | B53: 147 | C53: Betty 47 | D53: 2000-01-01 | E53: KT
A54: 48 | B54: 148 | C54: Betty 48 | D54: 1999-01-01 | E54: KT
A55: 49 | B55: 149 | C55: Betty 49 | D55: 1998-01-01 | E55: KT
A56: 50 | B56: 150 | C56: Betty 50 | D56: 1997-01-01 | E56: KT
A57: 51
A58: 52
A59: 53
A60: 54
A61: 55
A62: 56
A63: 57
A64: 58
A65: 59
A66: 60
A67: 61
A68: 62
A69: 63
A70: 64
A71: 65
A72: 66
A73: 67
A74: 68
A75: 69
A76: 70
A77: 71
A78: 72
A79: 73
A80: 74
A81: 75
A82: 76
A83: 77
A84: 78
A85: 79
A86: 80
A87: 81
A88: 82
A89: 83
A90: 84
A91: 85
A92: 86
A93: 87
A94: 88
A95: 89
A96: 90
A97: 91
A98: 92
A99: 93
A100: 94
A101: 95
A102: 96
A103: 97
A104: 98
A105: 99
A106: 100

Sheet Ram Data
A1: =Config!A1 -> MSU Extension Service Lamb Records
A2: Ram Data Sheet
G3: # Rams
G4: =IF(Ram_Count=0,"",Ram_Count) -> 5
A6: # | B6: Ram ID | C6: Ram Name | D6: Birth Date | E6: Breed | F6: Dam ID | G6: Sire ID
A7: 1 | B7: 201 | C7: Billy 1 | D7: 2007-01-01 | E7: Kt
A8: 2 | B8: 203 | C8: Billy 2 | D8: 2006-01-01 | E8: Kt
A9: 3 | B9: 202 | C9: Billy 3 | D9: 2005-01-01 | E9: Kt
A10: 4 | B10: 204 | C10: Billy 4 | D10: 2004-01-01 | E10: Bar
A11: 5 | B11: 205 | C11: Billy 5 | D11: 2003-01-01 | E11: Bar
A12: 6
A13: 7
A14: 8
A15: 9
A16: 10
A17: 11
A18: 12
A19: 13
A20: 14
A21: 15
A22: 16
A23: 17
A24: 18
A25: 19
A26: 20

Sheet Summary
A1: =Config!A1 -> MSU Extension Service Lamb Records
A2: Summary Sheet
A4: Summary by Age Group (60 Day, 90 Day, 120 Day)
B7: Data
A8: Wng Age Group | B8: N | C8: Ave Wng Age | D8: Ave WW | E8: Ave ADG | F8: Ave WDA | G8: Ave Age Corr WW | H8: Ave Adj WW | I8: Ave Adj WW Ratio
A9: 60 | B9: 18 | C9: 60.44444444 | D9: 52.77777778 | E9: 0.7230836557 | F9: 0.896709076 | G9: 53.55168601 | H9: 62.85514462 | I9: 117.3728585
A10: 90 | B10: 20 | C10: 92.3 | D10: 55 | E10: 0.4906770477 | F10: 0.6016514267 | G10: 54.31093429 | H10: 63.42299108 | I10: 116.7775733
A11: 120 | B11: 12 | C11: 113.8333333 | D11: 48.33333333 | E11: 0.3431741036 | F11: 0.4268685754 | G11: 50.68089243 | H11: 58.80365407 | I11: 108.8342664
A12: Grand Total | B12: 50 | C12: 86 | D12: 52.6 | E12: 0.53894272 | F12: 0.6659242961 | G12: 53.16639486 | H12: 62.10992547 | I12: 115.0854823
A15: Summary by Sex of Lamb (1=Ewe, 2=Ram, 3=Wether)
B18: Data
A19: Lamb Sex | B19: N | C19: Ave ADG | D19: Ave WDA | E19: Ave WW | F19: Ave Age Corr WW | G19: Ave Adj WW | H19: Ave Adj WW Ratio
A20: 1 | B20: 17 | C20: 0.5395293108 | D20: 0.6664682947 | E20: 52.94117647 | F20: 53.94669256 | G20: 65.95420012 | H20: 122.4855975
A21: 2 | B21: 17 | C21: 0.4852778409 | D21: 0.5990817865 | E21: 52.64705882 | F21: 51.9774006 | G21: 57.11972414 | H21: 105.5288515
A22: 3 | B22: 16 | C22: 0.5953384013 | D22: 0.7363664642 | E22: 52.1875 | F22: 53.60063496 | G22: 63.32747258 | H22: 117.3767801
A23: Grand Total | B23: 50 | C23: 0.53894272 | D23: 0.6659242961 | E23: 52.6 | F23: 53.16639486 | G23: 62.10992547 | H23: 115.0854823
A26: Summary by Birth/Rearing Type
A27: (1=Single, 2=Single Raised as Twin, 3=Twin Raised as Single, 4=Twin Raised as Twin, 5=Triplet Raised as Single, 6=Triplet Raised as Twin, 7=Triplet Raised as Triplet)
B30: Data
A31: Birth/ Rrng Type | B31: N | C31: Ave WW | D31: Ave ADG | E31: Ave WDA | F31: Ave Age Corr WW | G31: Ave Adj WW | H31: Ave Adj WW Ratio
A32: 1 | B32: 8 | C32: 48.75 | D32: 0.5272445051 | E32: 0.6608450897 | F32: 48.62887857 | G32: 47.61704405 | H32: 88.32792187
A33: 2 | B33: 7 | C33: 55.71428571 | D33: 0.5942846908 | E33: 0.7274148082 | F33: 55.66704597 | G33: 63.57481718 | H33: 117.7544326
A34: 3 | B34: 7 | C34: 54.28571429 | D34: 0.5702511317 | E34: 0.7089068992 | F34: 57.17596141 | G34: 62.04201392 | H34: 114.9170165
A35: 4 | B35: 7 | C35: 50.71428571 | D35: 0.467450523 | E35: 0.5811991524 | F35: 53.37886066 | G35: 63.45498197 | H35: 118.0416054
A36: 5 | B36: 7 | C36: 51.42857143 | D36: 0.4869890259 | E36: 0.6103090493 | F36: 53.79573231 | G36: 63.42775456 | H36: 117.044594
A37: 6 | B37: 7 | C37: 55 | D37: 0.5647938148 | E37: 0.683106792 | F37: 52.73409989 | G37: 67.41388054 | H37: 124.8735396
A38: 7 | B38: 7 | C38: 52.85714286 | D38: 0.5632565221 | E38: 0.690413883 | F38: 51.43240185 | G38: 69.30939773 | H38: 128.4617747
A39: Grand Total | B39: 50 | C39: 52.6 | D39: 0.53894272 | E39: 0.6659242961 | F39: 53.16639486 | G39: 62.10992547 | H39: 115.0854823
A42: Summary by Ram ID
B43: Data
A44: Ram ID | B44: N | C44: Ave ADG | D44: Ave WDA | E44: Ave Age Corr WW | F44: Ave WW | G44: Ave Adj WW | H44: Ave Adj WW Ratio
A45: 201 | B45: 10 | C45: 0.5154435072 | D45: 0.6298055321 | E45: 52.52685182 | F45: 53 | G45: 62.97922384 | H45: 117.1626161
A46: 202 | B46: 10 | C46: 0.4588121785 | D46: 0.5737838591 | E46: 49.96314954 | F46: 51 | G46: 58.73525406 | H46: 108.4498316
A47: 203 | B47: 10 | C47: 0.4982328898 | D47: 0.6275496862 | E47: 50.86519903 | F47: 51 | G47: 60.11731593 | H47: 111.1933545
A48: 204 | B48: 10 | C48: 0.5831750365 | D48: 0.7182418236 | E48: 54.23796642 | F48: 52 | G48: 62.88504299 | H48: 116.5758134
A49: 205 | B49: 10 | C49: 0.6390499877 | D49: 0.7802405797 | E49: 58.2388075 | F49: 56 | G49: 65.83279054 | H49: 122.0457958
A50: Grand Total | B50: 50 | C50: 0.53894272 | D50: 0.6659242961 | E50: 53.16639486 | F50: 52.6 | G50: 62.10992547 | H50: 115.0854823

Sheet Tables
A1: =Config!A1 -> MSU Extension Service Lamb Records
A2: Lookup and Criteria Tables Sheet
A3: (Please DO NOT EDIT ANY VALUES on this sheet!)
A6: Lamb Age Group Table | D6: Age of Dam Table | I6: Age Group Criteria | M6: N
A7: Lamb Age | B7: Age Group | D7: Age in Days | E7: Age in Years | I7: Wng Age Group | J7: Wng Age Group | K7: Wng Age Group | M7: Lambs | N7: Ewes | O7: Rams
A8: 0 | B8: 60 | D8: 0 | E8: 1 | I8: 60 | J8: 90 | K8: 120 | M8: =COUNTA('Lamb Data'!B10:B209) -> 50 | N8: =COUNTA('Ewe Data'!B7:B106) -> 50 | O8: =COUNTA('Ram Data'!B7:B26) -> 5
A9: 76 | B9: 90 | D9: 731 | E9: 2
A10: 106 | B10: 120 | D10: 1096 | E10: 3
D11: 2556 | E11: 7
A14: Ewe Lamb Adjustment Factors Table | J14: Source for Adjustment Factors Tables:
B15: Type of Birth/Rearing | J15: http://www.sheep101.info/201/adjweanwts.html
A16: Age of Dam | B16: 1,1 | C16: 1,2 | D16: 2,1 | E16: 2,2 | F16: 3,1 | G16: 3,2 | H16: 3,3 | J16: Sheep Production Handbook, 2002.
A17: 1 | B17: 1.14 | C17: 1.3 | D17: 1.27 | E17: 1.37 | F17: 1.36 | G17: 1.46 | H17: 1.56
A18: 2 | B18: 1.06 | C18: 1.21 | D18: 1.18 | E18: 1.27 | F18: 1.26 | G18: 1.36 | H18: 1.45
A19: 3 | B19: 1 | C19: 1.14 | D19: 1.11 | E19: 1.2 | F19: 1.19 | G19: 1.28 | H19: 1.37
A20: 7 | B20: 1.04 | C20: 1.19 | D20: 1.15 | E20: 1.25 | F20: 1.24 | G20: 1.33 | H20: 1.42
A22: Ram Lamb Adjustment Factors
B23: Type of Birth/Rearing
A24: Age of Dam | B24: 1,1 | C24: 1,2 | D24: 2,1 | E24: 2,2 | F24: 3,1 | G24: 3,2 | H24: 3,3
A25: 1 | B25: 1.04 | C25: 1.18 | D25: 1.15 | E25: 1.24 | F25: 1.23 | G25: 1.33 | H25: 1.42
A26: 2 | B26: 0.96 | C26: 1.1 | D26: 1.07 | E26: 1.16 | F26: 1.15 | G26: 1.23 | H26: 1.32
A27: 3 | B27: 0.91 | C27: 1.04 | D27: 1.01 | E27: 1.09 | F27: 1.08 | G27: 1.16 | H27: 1.25
A28: 7 | B28: 0.95 | C28: 1.08 | D28: 1.05 | E28: 1.14 | F28: 1.13 | G28: 1.21 | H28: 1.3
A30: Wether Lamb Adjustment Factors
B31: Type of Birth/Rearing
A32: Age of Dam | B32: 1,1 | C32: 1,2 | D32: 2,1 | E32: 2,2 | F32: 3,1 | G32: 3,2 | H32: 3,3
A33: 1 | B33: 1.11 | C33: 1.26 | D33: 1.23 | E33: 1.33 | F33: 1.32 | G33: 1.42 | H33: 1.51
A34: 2 | B34: 1.03 | C34: 1.21 | D34: 1.14 | E34: 1.23 | F34: 1.22 | G34: 1.32 | H34: 1.41
A35: 3 | B35: 0.97 | C35: 1.11 | D35: 1.08 | E35: 1.16 | F35: 1.15 | G35: 1.24 | H35: 1.33
A36: 7 | B36: 1.01 | C36: 1.15 | D36: 1.12 | E36: 1.21 | F36: 1.2 | G36: 1.29 | H36: 1.38

Sheet Lamb Recording Sheet
A1: =Config!A1 -> MSU Extension Service Lamb Records
A2: Lamb Data Entry Sheet
A3: Use this sheet to record lamb data in the field. Print as many copies as needed.
A5: Sex of Lamb = Ewe, Ram, or Wether
A6: Birth/Rearing Type: 1=Single raised as Single, 2=Single raised as Twin, 3=Twin Raised as Single, 4=Twin raised as Twin, 5=Triplet raised as Single, 6=Triplet raised as Twin, 7=Triplet raised as Triplet.
A8: Lamb ID | B8: Lamb Birth Date | C8: Sex of Lamb | D8: Birth Weight | E8: Ewe ID | F8: Ram ID | G8: Birth/ Rrng Type | H8: Weaning Date | I8: Weaning Weight

Sheet User Guide
A1: =Config!A1 -> MSU Extension Service Lamb Records
A2: User Guide
A4: The Lamb Records workbook is designed to calculate weaning age, Average Daily Gain (ADG), Weight per Day of Age (WDA), Adjusted Weaning Weight (Adj WW), and Adjusted WW Weight Ratio (Adj WW Ratio). The workbook can calculate results for 200 lambs from 100 ewes and 20 rams.
A5: Weaning Age is simply Weaning Date - Birth Date. Age Group is calculated as either 60, 90, or 120 days. Up to 75 days is considered the 60 Day group, 76 to 105 days is considered the 90 Day group, and over 105 days is in the 120 Day group. Weight per Day of Age (WDA) is calculated as Weaning Weight/Age at Weaning in days. Average Daily Gain (ADG) is calculated as (Weaning Weight - Birthweight)/Age at Weaning in Days. Age Corrected Weaning Weight is calculated as ADG * Age Group Days (60/90/120) + Birth Weight (BW). If ADG is not calculated due to missing birth weight, Age Corrected Weaning Weight is calculated as WDA * Age Group Days (60/90/120). Adjusted Weaning Weight (Adj WW) is calculated as Age Corr WW * Weight Adjustment Factor. Weights are adjusted for Sex, Age of Dam, and Birth/Rearing Type. The adjustment factors tables can be found on the Tables worksheet.
A7: Basic Tips for Using Excel
A8: 1. When you open the workbook, you must always enable the macros or the buttons will not work.
A9: 2. Generally, to move across the rows you type the data and press the Tab key to move to the next cell; to move down a column you type the data and press the Enter key. In the "Category" column, either click the down-arrow block at the end of the cell or press Alt-DownArrow to drop down a list of items to select from.
A10: 3. Remember to SAVE OFTEN as you enter data.
A12: Starting A New Year
A13: When you want to start a new year, there are a few things you need to do. Follow these steps to get ready for a new year.
A14: 1. Save the Lamb_Records_Master workbook to a new name. For example, 2015_MS_Sheep_Farm_Lamb_Records. If you have already entered ewe data and ram data, save the current year file to a new name instead of the master workbook.
A15: 2. Go to the Config worksheet and enter the Farm Name, Producer, and Lamb Year.
A16: 3. Go to the Lamb Data worksheet and clear the Lamb data by clicking the gray "Clear Lambs" button and answering "Y" to the question box that appears.
A17: 4. Go to the Ewe Data worksheet and enter data for the ewes present. Only the Ewe ID and the Ewe Birth Date MUST be entered. The Ewe Birth Date is required for determining the weight adjustment factors.
A18: 5. Print the Ewe Data sheet for entering lamb data. Click the gray "Print Ewes" button. Only the rows with ewe data will be printed.
A19: 6. Go to the Ram Data worksheet and enter the rams present. Only the Ram ID is required. The Lamb Data sheet can be sorted by Ram ID for selecting lambs if this data sheet is completed.
A20: 7. Print the Ram Data sheet for entering lamb data. Click the gray "Print Rams" button. Only the rows with Ram data will be printed.
A21: 8. Save the workbook.
A23: Recording Lamb Data
A24: The best way to record data for lambs is as they are born. The purpose of the Lamb Recording Sheet is to allow you to easily record data in the field. Print copies of this sheet so you can record the data in the field.
A26: Entering Lamb Data
A27: 1. Go to the Lamb Data worksheet.
A28: 2. Type the Lamb ID and press the Tab Key to move to the next field.
A29: 3. Type the Ewe ID from the Ewe Data worksheet and press the Tab key. The Ewe ID MUST be entered on the Ewe Data worksheet.
A30: 4. Type the Ram ID from the Ram Data worksheet and press the Tab key. The Ram ID MUST be entered on the Ram Data worksheet
A31: 5. Enter the lamb birth date and press the Tab key.
A32: 6. Type the sex of the lamb and press the Tab key. Enter 1 for a ewe lamb, 2 for a ram lamb, or 3 for a wether lamb.
A33: 7. Type the number for the Birth/Rearing Type and press the Tab key. The numbers for the different Birth/Rearing Type combinations will be listed in the message box.
A34: 8. Type the lamb birth weight and press the Tab key. If you did not weigh the lamb, you may estimate the birth weight or leave it blank. If the birth weight is not entered, the WDA will be used in calculating the Age Corrected Weaning Weight (Age Corr WW).
A35: 9. Enter the lamb weaning weight and press the Tab key.
A36: 10. Type the Weaning Weight and press the Tab key. Pressing the Tab key after entering the Weaning Wt will move the cursor back to the Lamb ID cell for the next lamb.
A37: 11. Save the worksheet often as you are entering lamb data.
A38: As Lamb data are entered, the various factors such as WDA, ADG, etc. will be calculated.
A40: Sorting/Printing Reports
A41: After you enter all the lamb data and the values are calculated, you are ready to sort the sheet and print it for making keep/cull decisions. The basic process is to click the appropriate sort method button on the Lmab Data sheet and then click the Print Lambs button. The print button will determine which rows have data and print only those rows with data. The report will be printed in the order they are sorted.
A42: The Sort by # button on the Lamb Data worksheet sorts the lambs the # column, A. This puts the lambs in the original order they were entered. The Sort by Lamb ID button sorts by the Lamb ID column. This makes it easier to enter data such as weaning weight and date.
A43: The Sort by ADG, Sort by WDA, Sort by Adj WW, and the Sort by Adj WW Ratio button all sort the lambs first by the sex of the lamb and then by the selected characteristic (ADG, WDA, Adj WW, or Adj WW Ratio).
A44: The Sort by Ram/Adj WW and Sort by Ram/Adj WW Ratio buttons sort the lambs first by Ram ID, then by the sex of the lamb, and then by the selected characteristic (Adj WW or Adj WW Ratio).
